bitfinex/quotes_SOLUSD_20241103
["timestamp","ask_amount","ask_price","bid_price","bid_amount"]
[1730616685510,42.74532567,163.23,163.22,0.3048138]
[1730616685914,42.84532567,163.23,163.22,0.3048138]
[1730616686836,36.61902567,163.23,163.22,0.3048138]
[1730616687434,42.74532567,163.23,163.22,0.3048138]
[1730616687640,42.84532567,163.23,163.22,0.3048138]
[1730616690013,12.84214167,163.23,163.22,0.3048138]
[1730616690234,12.84214167,163.24,163.22,0.3048138]
[1730616690443,12.94214167,163.23,163.22,0.3048138]
[1730616691320,36.71902567,163.23,163.22,0.3048138]
[1730616691523,42.84532567,163.23,163.22,0.3048138]
[1730616692740,42.94532567,163.23,163.22,0.3048138]
[1730616692924,49.57972567,163.23,163.22,0.3048138]
[1730616695137,49.47972567,163.23,163.22,0.3048138]
[1730616695324,42.84532567,163.23,163.22,0.3048138]
[1730616695526,42.94532567,163.23,163.22,0.3048138]
[1730616695725,42.84532567,163.23,163.22,0.3048138]
[1730616696619,42.94532567,163.23,163.22,0.3048138]
[1730616697017,42.84532567,163.23,163.22,0.3048138]
[1730616697723,42.94532567,163.23,163.22,0.3048138]
[1730616700251,42.84532567,163.23,163.22,0.3048138]
[1730616700542,42.94532567,163.23,163.22,0.3048138]
[1730616700748,42.74532567,163.23,163.22,0.3048138]
[1730616701129,23.776884,163.23,163.22,0.3048138]
[1730616701735,19.06824167,163.24,163.22,0.3048138]
[1730616702135,12.84214167,163.24,163.22,0.3048138]
[1730616703035,12.84214167,163.25,163.22,0.3048138]
[1730616703223,18.96694167,163.27,163.22,6.4312138]
[1730616703428,19.06694167,163.27,163.22,6.4312138]
[1730616703846,18.96694167,163.27,163.22,6.4312138]
[1730616704254,12.84214167,163.27,163.22,34.59005547]
[1730616704933,12.84214167,163.29,163.24,12.84214167]
[1730616705447,6.2234,163.31,163.26,12.84214167]
[1730616705638,12.84214167,163.3,163.24,12.84214167]
[1730616705943,18.96554167,163.31,163.25,34.28154167]
[1730616706151,12.84214167,163.31,163.25,34.28154167]
[1730616706332,0.1,163.33,163.27,12.84214167]
[1730616706333,18.96504167,163.32,163.27,12.84214167]
[1730616706535,19.06504167,163.32,163.27,12.84214167]
[1730616707058,12.84214167,163.29,163.23,35.03804167]
[1730616707231,12.84214167,163.29,163.23,41.16414167]
[1730616707729,23.776884,163.28,163.23,41.16414167]
[1730616709051,29.901584,163.28,163.23,35.03804167]
[1730616709230,12.84214167,163.25,163.22,0.3048138]
[1730616709652,23.776884,163.24,163.22,0.3048138]
[1730616710256,29.902884,163.24,163.22,0.3048138]
[1730616710432,23.776884,163.24,163.22,0.3048138]
[1730616711749,6.1256,163.25,163.22,0.3048138]
[1730616711750,23.776884,163.25,163.22,0.3048138]
[1730616712965,23.776884,163.23,163.22,0.3048138]
[1730616717662,36.61902567,163.23,163.22,0.3048138]
[1730616717862,23.776884,163.23,163.22,0.3048138]
[1730616718068,42.74532567,163.23,163.22,0.3048138]
[1730616718846,42.84532567,163.23,163.22,0.3048138]
[1730616720440,129.11802567,163.23,163.22,0.3048138]
[1730616721263,59.11802567,163.23,163.22,0.3048138]
[1730616722265,129.11802567,163.23,163.22,0.3048138]
[1730616723271,59.11802567,163.23,163.22,0.3048138]
[1730616723474,59.01802567,163.23,163.22,0.3048138]
[1730616723677,12.84214167,163.23,163.22,0.3048138]
[1730616723866,18.96844167,163.23,163.22,0.3048138]
[1730616724075,12.84214167,163.23,163.22,0.3048138]
[1730616725455,6.2252,163.26,163.22,0.3048138]
[1730616726152,6.2252,163.26,163.22,13.14695547]
[1730616726347,0.1,163.3,163.22,34.59015547]
[1730616726348,12.84214167,163.28,163.22,34.59015547]
[1730616726548,12.84214167,163.26,163.22,21.7480138]
[1730616726774,12.84214167,163.25,163.22,21.7480138]
[1730616727482,12.84214167,163.26,163.22,21.7480138]
[1730616727673,36.61902567,163.25,163.22,15.6215138]
[1730616727881,12.84214167,163.24,163.22,0.3048138]
[1730616728181,36.61902567,163.25,163.22,0.3048138]
[1730616728855,12.84214167,163.24,163.22,0.3048138]
[1730616729588,36.61902567,163.23,163.22,0.3048138]
[1730616730759,23.776884,163.23,163.22,0.3048138]
[1730616730963,29.903184,163.23,163.22,0.3048138]
[1730616731463,42.74532567,163.23,163.22,0.3048138]
[1730616732981,42.94532567,163.23,163.22,0.3048138]
[1730616733186,59.36072567,163.23,163.22,0.3048138]
[1730616735771,59.26072567,163.23,163.22,0.3048138]
[1730616736080,59.36072567,163.23,163.22,0.3048138]
[1730616736675,129.36072567,163.23,163.22,0.3048138]
[1730616740689,59.26072567,163.23,163.22,0.3048138]
[1730616740896,19.06844167,163.23,163.22,0.3048138]
[1730616741059,19.16844167,163.23,163.22,0.3048138]
[1730616741685,19.06844167,163.23,163.22,0.3048138]
[1730616742069,42.94532567,163.23,163.22,0.3048138]
[1730616742586,42.84532567,163.23,163.22,0.3048138]
[1730616742985,42.74532567,163.23,163.22,0.3048138]
[1730616749091,42.84532567,163.23,163.22,0.3048138]
[1730616749789,38.27155558,163.23,163.22,0.3048138]
[1730616749998,38.37155558,163.23,163.22,0.3048138]
[1730616751696,43.0247668,163.23,163.22,0.3048138]
[1730616753705,42.9247668,163.23,163.22,0.3048138]
[1730616754280,43.0247668,163.23,163.22,0.3048138]
[1730616755383,42.9247668,163.23,163.22,0.3048138]
[1730616755585,42.8247668,163.23,163.22,0.3048138]
[1730616755802,43.0247668,163.23,163.22,0.3048138]
[1730616759285,43.2247668,163.23,163.22,0.3048138]
[1730616759799,63.2247668,163.23,163.22,0.3048138]
[1730616762809,63.0247668,163.23,163.22,0.3048138]
[1730616763405,43.0247668,163.23,163.22,0.3048138]
[1730616763592,63.0247668,163.23,163.22,0.3048138]
[1730616763793,43.0247668,163.23,163.22,0.3048138]
[1730616764093,42.9247668,163.23,163.22,0.3048138]
[1730616764297,43.0247668,163.23,163.22,0.3048138]
[1730616766294,42.9247668,163.23,163.22,0.3048138]
[1730616766688,43.0247668,163.23,163.22,0.3048138]
[1730616767701,42.9247668,163.23,163.22,0.3048138]
[1730616767897,43.0247668,163.23,163.22,0.3048138]
[1730616771711,38.37353514,163.23,163.22,0.3048138]
[1730616774910,14.59665114,163.23,163.22,0.3048138]
[1730616775895,14.49665114,163.23,163.22,0.3048138]
[1730616776190,38.17353514,163.23,163.22,0.3048138]
[1730616776407,38.37353514,163.23,163.22,0.3048138]
[1730616776596,38.27353514,163.23,163.22,0.3048138]
[1730616777314,38.17353514,163.23,163.22,0.3048138]
[1730616777810,14.39665114,163.23,163.22,0.3048138]
[1730616778015,8.27035114,163.24,163.22,0.3048138]
[1730616778889,8.27035114,163.23,163.22,0.3048138]
[1730616779313,32.04723514,163.23,163.22,0.3048138]
[1730616780198,8.27035114,163.25,163.22,6.4315138]
[1730616780499,8.27035114,163.25,163.22,0.3048138]
[1730616787024,32.04723514,163.24,163.22,0.3048138]
[1730616787398,8.27035114,163.23,163.22,0.3048138]
[1730616787600,32.04723514,163.23,163.22,0.3048138]
[1730616788992,23.776884,163.23,163.22,0.3048138]
[1730616791117,32.04723514,163.23,163.22,0.3048138]
[1730616791317,38.17353514,163.23,163.22,0.3048138]
[1730616793917,8.27035114,163.23,163.22,0.3048138]
[1730616794127,8.27035114,163.24,163.22,0.3048138]
[1730616795207,23.776884,163.23,163.22,0.3048138]
[1730616796226,32.04723514,163.23,163.22,0.3048138]
[1730616797023,38.17353514,163.23,163.22,0.3048138]
[1730616800209,32.04723514,163.23,163.22,0.3048138]
[1730616800409,14.39635114,163.24,163.22,0.3048138]
[1730616801833,23.776884,163.23,163.22,0.3048138]
[1730616802147,32.04723514,163.23,163.22,0.3048138]
[1730616805836,14.39605114,163.25,163.22,0.3048138]
[1730616806041,32.04723514,163.24,163.22,0.3048138]
[1730616806834,23.776884,163.24,163.22,0.3048138]
[1730616810134,8.27035114,163.27,163.22,0.3048138]
[1730616810328,16.5231,163.31,163.22,0.3048138]
[1730616810329,8.27035114,163.28,163.22,30.01846494]
[1730616810633,8.27035114,163.29,163.23,8.27035114]
[1730616811020,8.27035114,163.28,163.22,30.01846494]
[1730616811720,14.39465114,163.29,163.23,8.27035114]
[1730616812831,32.04723514,163.28,163.22,30.01846494]
[1730616813043,8.27035114,163.27,163.22,21.7481138]
[1730616814725,29.901384,163.28,163.22,30.01846494]
[1730616814726,38.17173514,163.28,163.22,30.01846494]
[1730616817826,14.39515114,163.27,163.22,21.7481138]
[1730616818227,8.27035114,163.24,163.22,0.3048138]
[1730616821151,14.39635114,163.24,163.22,0.3048138]
[1730616821530,6.126,163.24,163.22,0.3048138]
[1730616823943,23.776884,163.24,163.22,0.3048138]
[1730616825462,32.04723514,163.23,163.22,0.3048138]
[1730616825642,38.17353514,163.23,163.22,0.3048138]
[1730616830045,38.27353514,163.23,163.22,0.3048138]
[1730616832545,38.17353514,163.23,163.22,0.3048138]
[1730616832953,38.27353514,163.23,163.22,0.3048138]
[1730616834039,38.17353514,163.23,163.22,0.3048138]
[1730616834549,38.27353514,163.23,163.22,0.3048138]
[1730616835751,38.17353514,163.23,163.22,0.3048138]
[1730616843861,38.27353514,163.23,163.22,0.3048138]
[1730616844372,38.37353514,163.23,163.22,0.3048138]
[1730616850550,14.39665114,163.23,163.22,0.3048138]
[1730616851744,38.17353514,163.23,163.22,0.3048138]
[1730616853859,38.27353514,163.23,163.22,0.3048138]
[1730616854977,38.17353514,163.23,163.22,0.3048138]
[1730616863070,38.27353514,163.23,163.22,0.3048138]
[1730616866660,38.37353514,163.23,163.22,0.3048138]
[1730616868385,0.2,163.2,163.14,0.3048138]
[1730616868586,8.27035114,163.16,163.14,0.3048138]
[1730616869275,14.39935114,163.16,163.14,0.3048138]
[1730616869964,8.27035114,163.15,163.14,0.3048138]
[1730616870171,32.04723514,163.15,163.14,0.3048138]
[1730616872293,23.776884,163.15,163.14,0.3048138]
[1730616882775,23.776884,163.17,163.14,6.4345138]
[1730616883585,23.776884,163.18,163.14,6.4345138]
[1730616883786,8.27035114,163.21,163.15,8.27035114]
[1730616884103,8.27035114,163.23,163.17,8.27035114]
[1730616884290,8.27035114,163.18,163.14,0.3048138]
[1730616884604,8.27035114,163.16,163.14,0.3048138]
[1730616886107,32.04723514,163.15,163.14,0.3048138]
[1730616887896,38.17653514,163.15,163.14,0.3048138]
[1730616892221,23.776884,163.15,163.14,0.3048138]
[1730616892593,14.39935114,163.16,163.14,0.3048138]
[1730616894127,23.776884,163.15,163.14,0.3048138]
[1730616895938,32.04723514,163.15,163.14,0.3048138]
[1730616896221,38.17653514,163.15,163.14,0.3048138]
[1730616897922,32.04723514,163.15,163.14,0.3048138]
[1730616907721,38.17653514,163.15,163.14,0.3048138]
[1730616908027,32.04723514,163.15,163.14,0.3048138]
[1730616908317,23.776884,163.15,163.14,0.3048138]
[1730616909220,14.39895114,163.17,163.14,0.3048138]
[1730616909518,8.27035114,163.18,163.14,21.7585138]
[1730616909731,8.27035114,163.2,163.14,30.02886494]
[1730616910016,8.27035114,163.2,163.14,46.52836494]
[1730616910896,23.776884,163.19,163.14,46.52836494]
[1730616912020,8.27035114,163.21,163.16,29.72155114]
[1730616912606,8.27035114,163.21,163.16,21.4512]
[1730616916304,8.27035114,163.19,163.16,15.3223]
[1730616916841,8.27035114,163.19,163.15,6.1292]
[1730616917628,14.39815114,163.19,163.15,6.1292]
[1730616918137,8.27035114,163.18,163.15,6.1292]
[1730616918738,8.27035114,163.18,163.14,0.3048138]
[1730616918924,8.27035114,163.16,163.14,0.3048138]
[1730616920705,14.39895114,163.17,163.14,0.3048138]
[1730616921610,8.27035114,163.19,163.14,6.4344138]
[1730616921917,8.27035114,163.17,163.14,6.4344138]
[1730616924423,14.39715114,163.22,163.16,8.27035114]
[1730616925445,14.39715114,163.22,163.17,6.1285]
[1730616925733,8.27035114,163.21,163.17,6.1285]
[1730616928837,14.39715114,163.22,163.17,21.4499]
[1730616929017,8.27035114,163.23,163.17,29.72025114]
[1730616929224,23.776884,163.22,163.17,29.72025114]
[1730616931144,14.39665114,163.23,163.17,29.72025114]
[1730616933527,14.39665114,163.23,163.18,8.27035114]
[1730616933725,14.39395114,163.3,163.22,8.27035114]
[1730616934033,14.39395114,163.3,163.24,8.27035114]
[1730616935030,23.776884,163.29,163.24,8.27035114]
[1730616936437,32.04723514,163.29,163.23,14.39635114]
[1730616937250,38.17153514,163.29,163.23,14.39635114]
[1730616937944,8.27035114,163.28,163.23,6.126]
[1730616938935,38.17153514,163.29,163.23,14.39635114]
[1730616940031,23.776884,163.27,163.22,23.58635114]
[1730616941448,23.776884,163.27,163.22,29.71305114]
[1730616941840,32.04723514,163.27,163.21,8.27035114]
[1730616942037,32.04723514,163.27,163.2,6.2475]
[1730616942038,8.27035114,163.24,163.2,6.1273]
[1730616942341,8.27035114,163.24,163.19,15.3194]
[1730616942550,8.27035114,163.24,163.19,23.58975114]
[1730616943456,8.27035114,163.24,163.19,29.71755114]
[1730616944450,8.27035114,163.2,163.15,21.4518]
[1730616944623,8.27035114,163.19,163.15,21.4518]
[1730616945131,23.776884,163.21,163.16,8.27035114]
[1730616945747,23.776884,163.21,163.17,6.1285]
[1730616949540,32.04723514,163.21,163.15,23.59285114]
[1730616949750,32.04723514,163.21,163.15,29.72215114]
[1730616950038,29.903984,163.21,163.15,21.4518]
[1730616950244,8.27035114,163.19,163.15,21.4518]
[1730616950829,8.27035114,163.2,163.15,21.4518]
[1730616951138,38.17433514,163.21,163.15,29.72215114]
[1730616953350,8.27035114,163.2,163.15,29.72215114]
[1730616953537,8.27035114,163.2,163.15,21.4518]
[1730616955338,8.27035114,163.19,163.15,21.4518]
[1730616955543,8.27035114,163.2,163.15,21.4518]
[1730616956057,8.27035114,163.2,163.15,29.72215114]
[1730616957035,8.27035114,163.21,163.15,29.72215114]
[1730616957349,8.27035114,163.22,163.16,8.27035114]
[1730616957525,8.27035114,163.23,163.18,8.27035114]
[1730616958241,8.27035114,163.23,163.19,6.1278]
[1730616960454,8.27035114,163.22,163.18,21.4477]
[1730616960657,8.27035114,163.21,163.18,21.4477]
[1730616961857,8.27035114,163.21,163.18,15.3197]
[1730616962346,8.27035114,163.23,163.18,23.59005114]
[1730616962548,8.27035114,163.24,163.19,8.27035114]
[1730616963051,8.27035114,163.24,163.18,23.59005114]
[1730616963553,8.27035114,163.24,163.18,29.71825114]
[1730616964053,8.27035114,163.25,163.19,8.27035114]
[1730616964242,15.4759,163.28,163.18,21.4479]
[1730616964243,14.39515114,163.27,163.21,8.27035114]
[1730616964445,8.27035114,163.29,163.23,8.27035114]
[1730616964648,8.27035114,163.29,163.24,8.27035114]
[1730616965546,8.27035114,163.29,163.24,14.39595114]
[1730616965748,14.39445114,163.29,163.24,14.39595114]
[1730616965951,14.39445114,163.29,163.24,6.1256]
[1730616967758,23.74625114,163.32,163.27,8.27035114]
[1730616967935,8.27035114,163.33,163.28,8.27035114]
[1730616968136,14.39285114,163.34,163.28,8.27035114]
[1730616968439,8.27035114,163.3,163.24,8.27035114]
[1730616968649,8.27035114,163.29,163.24,8.27035114]
[1730616968956,8.27035114,163.29,163.25,6.1255]
[1730616969734,14.39415114,163.3,163.25,6.1255]
[1730616969961,8.27035114,163.29,163.25,6.1255]
[1730616970635,8.27035114,163.29,163.24,21.4403]
[1730616974456,8.27035114,163.32,163.26,8.27035114]
[1730616975756,14.39325114,163.32,163.27,6.1248]
[1730616976668,32.04723514,163.28,163.23,15.3155]
[1730616976848,8.27035114,163.26,163.23,21.4418]
[1730616977038,23.776884,163.28,163.23,21.4418]
[1730616977039,8.27035114,163.27,163.23,21.4418]
[1730616977435,8.27035114,163.29,163.23,29.71215114]
[1730616978758,8.27035114,163.27,163.23,21.4418]
[1730616978951,8.27035114,163.26,163.23,21.4418]
[1730616979343,8.27035114,163.27,163.23,21.4418]
[1730616980049,8.27035114,163.26,163.23,15.3155]
[1730616981664,8.27035114,163.26,163.2,60.35355114]
[1730616982756,8.27035114,163.26,163.21,8.27035114]
[1730616982962,8.27035114,163.26,163.22,21.4434]
[1730616983668,8.27035114,163.27,163.22,21.4434]
[1730616983839,8.27035114,163.28,163.22,29.71375114]
[1730616984036,38.17133514,163.29,163.23,8.27035114]
[1730616984346,32.04723514,163.29,163.23,8.27035114]
[1730616984660,23.776884,163.29,163.24,8.27035114]
[1730616984863,8.27035114,163.31,163.25,8.27035114]
[1730616985961,8.27035114,163.31,163.26,21.438]
[1730616987043,14.39365114,163.31,163.26,21.438]
[1730616987657,8.27035114,163.3,163.26,21.438]
[1730616988057,8.27035114,163.3,163.26,15.3129]
[1730616988258,8.27035114,163.29,163.26,15.3129]
[1730616988772,8.27035114,163.3,163.26,15.3129]
[1730616990671,8.27035114,163.3,163.24,8.27035114]
[1730616991648,8.27035114,163.3,163.25,23.58425114]
[1730616991858,14.39365114,163.31,163.25,23.58425114]
[1730616992770,14.39365114,163.31,163.25,29.70975114]
[1730616995060,8.27035114,163.31,163.25,29.70975114]
[1730616995873,32.04723514,163.32,163.25,29.70975114]
[1730616997065,32.04723514,163.32,163.26,8.27035114]
[1730616997786,15.7502,163.34,163.29,8.27035114]
[1730616997978,14.39205114,163.36,163.3,8.27035114]
[1730616999376,23.776884,163.35,163.31,6.1233]
[1730616999577,14.39205114,163.36,163.31,6.1233]
[1730616999884,8.27035114,163.36,163.31,21.4316]
[1730617004076,8.27035114,163.36,163.31,29.70195114]
[1730617004988,14.39145114,163.37,163.31,29.70195114]
[1730617007182,8.27035114,163.33,163.28,29.70545114]
[1730617007384,8.27035114,163.33,163.28,21.4351]
[1730617007680,8.27035114,163.34,163.28,29.70545114]
[1730617009267,14.39255114,163.34,163.28,29.70545114]
[1730617011587,8.27035114,163.33,163.28,21.4351]
[1730617015672,8.27035114,163.33,163.28,23.58105114]
[1730617016790,8.27035114,163.33,163.28,21.4351]
[1730617019684,8.27035114,163.32,163.28,21.4351]
[1730617019891,8.27035114,163.31,163.28,21.4351]
[1730617021669,8.27035114,163.29,163.26,6.1251]
[1730617022592,8.27035114,163.3,163.26,6.1251]
[1730617022773,8.27035114,163.3,163.26,21.438]
[1730617023690,8.27035114,163.29,163.26,15.3129]
[1730617024292,8.27035114,163.28,163.23,21.4415]
[1730617024500,8.27035114,163.26,163.23,21.4415]
[1730617025379,8.27035114,163.26,163.23,15.3155]
[1730617030098,8.27035114,163.27,163.23,15.3155]
[1730617031603,8.27035114,163.26,163.23,15.3155]
[1730617041389,8.27035114,163.24,163.21,6.127]
[1730617041787,8.27035114,163.24,163.21,21.4446]
[1730617041987,8.27035114,163.25,163.21,21.4446]
[1730617042787,8.27035114,163.25,163.21,15.3176]
[1730617047904,8.27035114,163.24,163.21,15.3176]
[1730617051429,8.27035114,163.25,163.2,8.27035114]
[1730617051592,8.27035114,163.27,163.21,8.27035114]
[1730617052408,8.27035114,163.26,163.22,21.4434]
[1730617053289,8.27035114,163.25,163.22,15.3167]
[1730617053796,8.27035114,163.24,163.22,15.3167]
[1730617058818,6.1253,163.26,163.22,15.3167]
[1730617058819,8.27035114,163.26,163.22,15.3167]
[1730617060397,14.39565114,163.26,163.22,15.3167]
[1730617061032,8.27035114,163.28,163.22,23.58705114]
[1730617061695,8.27035114,163.27,163.22,15.3167]
[1730617061896,15.4088,163.31,163.22,15.3167]
[1730617062097,8.27035114,163.26,163.22,15.3167]
[1730617063031,8.27035114,163.27,163.22,15.3167]
[1730617063625,8.27035114,163.25,163.22,15.3167]
[1730617064006,15.4088,163.31,163.2,21.446]
[1730617064007,8.27035114,163.23,163.2,21.446]
[1730617064515,8.27035114,163.24,163.2,21.446]
[1730617065024,8.27035114,163.24,163.2,15.3186]
[1730617071525,8.27035114,163.23,163.2,15.3186]
[1730617074003,8.27035114,163.24,163.2,15.3186]
[1730617078624,14.39485114,163.28,163.22,8.27035114]
[1730617079728,14.39485114,163.28,163.23,6.1263]
[1730617079934,8.27035114,163.27,163.23,6.1263]
[1730617080623,8.27035114,163.27,163.22,21.4425]
[1730617080818,8.27035114,163.27,163.24,0.028864]
[1730617081015,8.27035114,163.26,163.24,0.028864]
[1730617085613,8.27035114,163.25,163.24,0.028864]
[1730617085930,14.39585114,163.25,163.24,0.028864]
[1730617087531,38.17273514,163.25,163.24,0.028864]
[1730617090336,8.27035114,163.25,163.24,0.028864]
[1730617094531,14.39555114,163.26,163.24,0.028864]
[1730617096643,8.27035114,163.27,163.24,0.028864]
[1730617096936,8.27035114,163.28,163.24,0.028864]
[1730617098440,6.1243,163.29,163.24,0.028864]
[1730617098441,8.27035114,163.27,163.24,0.028864]
[1730617098842,8.27035114,163.26,163.24,0.028864]
[1730617103546,8.27035114,163.27,163.24,0.028864]
[1730617104132,8.27035114,163.28,163.24,0.028864]
[1730617105248,14.39485114,163.28,163.24,0.028864]
[1730617105747,14.39465114,163.29,163.24,0.028864]
[1730617106253,8.27035114,163.25,163.24,0.028864]
[1730617106956,8.27035114,163.26,163.24,0.028864]
[1730617107527,6.125,163.27,163.24,0.028864]
[1730617107528,8.27035114,163.25,163.24,0.028864]
[1730617108841,8.27035114,163.26,163.24,0.028864]
[1730617111228,14.39515114,163.27,163.24,0.028864]
[1730617112666,16.1297,163.31,163.24,8.29921514]
[1730617112667,8.27035114,163.29,163.24,8.29921514]
[1730617112951,24.40005114,163.31,163.25,8.27035114]
[1730617113254,8.27035114,163.3,163.25,8.27035114]
[1730617113958,14.39405114,163.3,163.25,6.1255]
[1730617115951,8.27035114,163.27,163.24,21.468964]
[1730617117044,8.27035114,163.26,163.24,0.028864]
[1730617118839,21.4328,163.3,163.24,0.028864]
[1730617118840,8.27035114,163.25,163.24,0.028864]
[1730617123952,14.39585114,163.25,163.24,0.028864]
[1730617139049,8.27035114,163.26,163.24,0.028864]
[1730617139251,14.39565114,163.26,163.24,0.028864]
[1730617140167,8.27035114,163.26,163.24,0.028864]
[1730617140374,14.39555114,163.26,163.24,0.028864]
[1730617144273,8.27035114,163.25,163.24,0.028864]
[1730617149878,8.27035114,163.26,163.24,0.028864]
[1730617150070,14.39495114,163.28,163.24,0.028864]
[1730617150266,8.27035114,163.27,163.24,0.028864]
[1730617151287,14.39515114,163.27,163.24,0.028864]
[1730617152172,8.27035114,163.26,163.24,0.028864]
[1730617152362,8.27035114,163.25,163.24,0.028864]
[1730617155080,32.04723514,163.25,163.24,0.028864]
[1730617155290,38.17273514,163.25,163.24,0.028864]
[1730617171491,38.17273514,163.25,163.18,21.4482]
[1730617171681,8.27035114,163.23,163.18,21.4482]
[1730617174106,14.39635114,163.24,163.18,23.59035114]
[1730617174495,14.39585114,163.25,163.18,23.59035114]
[1730617174694,6.1255,163.25,163.2,8.27035114]
[1730617175604,8.27035114,163.26,163.2,8.27035114]
[1730617175605,8.27035114,163.28,163.22,8.27035114]
[1730617176483,8.27035114,163.28,163.23,21.4421]
[1730617176683,14.39485114,163.28,163.23,21.4421]
[1730617179600,8.27035114,163.3,163.25,8.27035114]
[1730617179808,8.27035114,163.31,163.26,8.27035114]
[1730617181596,8.27035114,163.3,163.27,6.1248]
[1730617184412,8.27035114,163.3,163.26,21.438]
[1730617189313,8.27035114,163.3,163.26,15.3129]
[1730617189511,8.27035114,163.29,163.26,15.3129]
[1730617190015,8.27035114,163.27,163.22,21.4434]
[1730617190320,6.1237,163.3,163.22,21.4434]
[1730617190321,8.27035114,163.25,163.22,21.4434]
[1730617190614,8.27035114,163.26,163.22,21.4434]
[1730617191414,8.27035114,163.27,163.22,21.4434]
[1730617192720,8.27035114,163.27,163.22,23.58705114]
[1730617193910,8.27035114,163.27,163.22,29.71375114]
[1730617195296,8.27035114,163.27,163.22,15.3167]
[1730617196827,8.27035114,163.27,163.22,21.4434]
[1730617197320,8.27035114,163.26,163.22,21.4434]
[1730617198317,8.27035114,163.26,163.22,15.3167]
[1730617199616,8.27035114,163.26,163.22,21.4434]
[1730617202216,8.27035114,163.26,163.22,15.3167]
[1730617203022,14.39485114,163.28,163.22,23.58705114]
[1730617203323,8.27035114,163.27,163.22,23.58705114]
[1730617204321,8.27035114,163.27,163.22,29.71375114]
[1730617204516,15.3078,163.32,163.22,29.71375114]
[1730617204517,8.27035114,163.32,163.26,8.27035114]
[1730617204720,8.27035114,163.33,163.28,8.27035114]
[1730617205522,8.27035114,163.35,163.29,8.27035114]
[1730617205826,14.39205114,163.36,163.3,8.27035114]
[1730617206009,8.27035114,163.34,163.29,8.27035114]
[1730617206211,8.27035114,163.34,163.28,8.27035114]
[1730617206399,8.27035114,163.32,163.29,21.4341]
[1730617206605,8.27035114,163.3,163.27,6.1248]
[1730617206914,8.27035114,163.28,163.22,44.93715114]
[1730617207097,8.27035114,163.26,163.23,15.3156]
[1730617207298,8.27035114,163.25,163.21,6.1267]
[1730617207904,8.27035114,163.24,163.21,6.1267]
[1730617208307,8.27035114,163.24,163.18,14.30365114]
[1730617208518,8.27035114,163.24,163.21,15.3176]
[1730617209019,8.27035114,163.22,163.17,21.4491]
[1730617209223,8.27035114,163.21,163.17,21.4491]
[1730617209899,8.27035114,163.22,163.17,15.3209]
[1730617210094,8.27035114,163.21,163.17,15.3209]
[1730617210506,8.27035114,163.22,163.17,23.59125114]
[1730617210708,8.27035114,163.23,163.17,23.59125114]
[1730617210920,8.27035114,163.24,163.18,8.27035114]
[1730617211899,8.27035114,163.24,163.19,21.4473]
[1730617212317,8.27035114,163.26,163.2,8.27035114]
[1730617212628,8.27035114,163.27,163.22,8.27035114]
[1730617213429,22.3413,163.29,163.22,8.27035114]
[1730617213430,8.27035114,163.28,163.22,8.27035114]
[1730617213604,8.27035114,163.27,163.22,8.27035114]
[1730617214618,8.27035114,163.27,163.23,6.1263]
[1730617215407,8.27035114,163.27,163.23,21.4421]
[1730617216043,8.27035114,163.27,163.24,0.028864]
[1730617216605,8.27035114,163.26,163.24,0.028864]
[1730617216922,8.27035114,163.25,163.24,0.028864]
[1730617217519,8.27035114,163.26,163.24,0.028864]
[1730617217717,8.27035114,163.27,163.24,0.028864]
[1730617218318,8.27035114,163.26,163.24,0.028864]
[1730617219525,8.27035114,163.27,163.24,0.028864]
[1730617221316,8.27035114,163.26,163.24,0.028864]
[1730617223434,8.27035114,163.25,163.24,0.028864]
[1730617226635,14.39585114,163.25,163.24,0.028864]
[1730617229916,8.27035114,163.25,163.24,0.028864]
[1730617230115,14.39555114,163.26,163.24,0.028864]
[1730617230736,8.27035114,163.25,163.24,0.028864]
[1730617232125,14.39585114,163.25,163.24,0.028864]
[1730617234418,8.27035114,163.25,163.24,0.028864]
[1730617239535,8.27035114,163.26,163.24,0.028864]
[1730617240247,8.27035114,163.27,163.24,0.028864]
[1730617240623,6.1244,163.28,163.24,0.028864]
[1730617241154,29.900484,163.3,163.24,0.028864]
[1730617243446,6.1236,163.3,163.24,0.028864]
[1730617244634,21.4305,163.32,163.24,0.028864]
[1730617246535,23.776884,163.31,163.24,0.028864]
[1730617247039,6.1236,163.3,163.24,0.028864]
[1730617256352,29.899784,163.32,163.24,0.028864]
[1730617257443,54.63486601,163.32,163.24,0.028864]
[1730617262564,23.776884,163.28,163.24,0.028864]
[1730617263956,6.1248,163.27,163.24,0.028864]
[1730617265661,70.0,163.25,163.24,0.028864]
[1730617265869,23.776884,163.24,163.14,0.3048138]
[1730617266048,33.20466601,163.24,163.14,0.3048138]
[1730617266537,23.776884,163.24,163.14,0.3048138]